bitfinex/quotes_ETHUSD_20251023
["timestamp","ask_amount","ask_price","bid_price","bid_amount"]
[1761214906342,7.50299129,3902.3,3902.2,1e-08]
[1761214911780,7.50399129,3902.3,3902.2,1e-08]
[1761214912875,0.001,3902.3,3902.2,0.22090001]
[1761214913171,0.001,3902.3,3902.2,0.66760001]
[1761214913570,2.56359129,3902.3,3902.2,0.66760001]
[1761214915187,0.001,3902.3,3902.2,0.66760001]
[1761214916871,0.001,3902.3,3902.2,0.99104464]
[1761214917076,0.001,3902.3,3902.2,0.66760001]
[1761214921358,0.001,3902.3,3902.2,3.23025697]
[1761214921558,0.001,3902.3,3902.2,3.25588353]
[1761214923859,0.001,3902.3,3902.2,3.23025697]
[1761214925461,0.001,3902.3,3902.2,3.73713697]
[1761214925662,0.001,3902.3,3902.2,6.35073241]
[1761214925861,0.001,3902.3,3902.2,6.7594657]
[1761214926397,0.001,3902.3,3902.2,6.35073241]
[1761214927656,0.001,3902.5,3902.4,3.06940562]
[1761214927860,0.001,3902.5,3902.4,4.65023087]
[1761214928083,0.001,3902.5,3902.4,6.4580692]
[1761214928255,0.001,3902.5,3902.4,6.43244395]
[1761214928677,0.001,3902.7,3902.6,3.0692743]
[1761214928979,0.001,3902.7,3902.6,7.90309824]
[1761214929188,0.001,3902.7,3902.6,8.3114743]
[1761214929381,0.001,3902.7,3902.6,9.53625813]
[1761214930698,0.0002,3902.7,3902.6,9.53625813]
[1761214932000,0.0002,3902.7,3902.6,9.63875429]
[1761214932567,0.0002,3902.7,3902.6,13.50875429]
[1761214933600,0.0002,3902.7,3902.6,13.40425813]
[1761214935605,0.0002,3902.7,3902.6,13.53225813]
[1761214935815,0.0002,3902.7,3902.6,13.02537813]
[1761214938717,0.0002,3902.7,3902.6,9.15537813]
[1761214944200,0.0002,3902.7,3902.6,7.60017813]
[1761214945834,0.0002,3902.7,3902.6,3.91517813]
[1761214946030,0.0002,3902.7,3902.6,7.16417813]
[1761214946232,0.0002,3902.7,3902.4,2.56252046]
[1761214946435,0.0002,3902.7,3902.6,3.251]
[1761214948903,0.0993,3902.7,3902.6,3.251]
[1761214949904,0.0002,3902.7,3902.6,3.251]
[1761214954747,0.2053,3902.7,3902.6,3.251]
[1761214955212,0.2045,3902.7,3902.6,3.251]
[1761214955913,2.56232864,3902.7,3902.6,3.251]
[1761214956243,2.56232864,3902.7,3902.6,0.002]
[1761214956244,4.11752864,3902.7,3902.6,0.002]
[1761214956458,4.88668347,3902.7,3902.6,0.002]
[1761214957361,4.98508347,3902.7,3902.6,0.002]
[1761214962757,4.98608347,3902.7,3902.6,0.002]
[1761214965984,5.11408347,3902.7,3902.6,0.002]
[1761214968194,4.34492864,3902.7,3902.6,0.002]
[1761214968396,4.44749261,3902.7,3902.6,0.002]
[1761214968692,4.34909261,3902.7,3902.6,0.002]
[1761214968903,4.24652864,3902.7,3902.6,0.002]
[1761214969389,4.34552864,3902.7,3902.6,0.002]
[1761214969695,4.24652864,3902.7,3902.6,0.002]
[1761214970468,2.69132864,3902.7,3902.6,0.002]
[1761214971167,0.129,3902.7,3902.6,0.002]
[1761214971499,2.69132864,3902.7,3902.6,0.4729]
[1761214971693,0.129,3902.7,3902.6,0.4729]
[1761214972287,0.001,3902.7,3902.6,6.59040597]
[1761214975069,0.001,3902.7,3902.6,0.002]
[1761214976101,2.56332864,3902.7,3902.6,0.002]
[1761214976400,0.001,3902.7,3902.6,0.002]
[1761214976706,2.56332864,3902.7,3902.6,0.002]
[1761214977104,0.001,3902.7,3902.6,0.002]
[1761214977307,2.56332864,3902.7,3902.6,0.002]
[1761214978515,0.001,3902.7,3902.6,0.002]
[1761214979781,2.56252864,3902.7,3902.6,0.002]
[1761214980906,0.0002,3902.7,3902.6,0.002]
[1761214981310,2.56252864,3902.7,3902.6,0.002]
[1761214981509,0.0002,3902.7,3902.6,0.002]
[1761214982026,2.56252864,3902.7,3902.6,0.002]
[1761214982319,2.69052864,3902.7,3902.6,0.002]
[1761214982501,0.1282,3902.7,3902.6,0.4548]
[1761214983002,0.1282,3902.7,3902.6,0.002]
[1761214983180,2.69052864,3902.7,3902.6,0.002]
[1761214983592,0.1282,3902.7,3902.6,0.002]
[1761214984595,0.1282,3902.7,3902.6,0.4548]
[1761214986302,0.1282,3902.7,3902.6,1.08142842]
[1761214986921,0.1282,3902.7,3902.6,3.64382272]
[1761214988010,0.1282,3902.7,3902.6,3.66944666]
[1761214988444,0.1282,3902.7,3902.6,3.64382272]
[1761214994355,0.1282,3902.7,3902.6,3.66944666]
[1761214994838,0.1282,3902.7,3902.6,3.64382272]
[1761214995652,0.1282,3902.7,3902.6,3.66944666]
[1761214997753,0.1282,3902.7,3902.6,3.64382272]
[1761214997928,0.1282,3902.7,3902.6,3.66944666]
[1761214998554,0.1282,3902.7,3902.6,0.02762394]
[1761214998855,6.91565433,3902.7,3902.6,0.002]
[1761215002139,8.47085433,3902.7,3902.6,0.002]
[1761215003972,8.47085433,3902.7,3902.6,0.002]
[1761215004140,8.47005433,3902.7,3902.6,0.002]
[1761215006342,11.71905433,3902.7,3902.6,0.002]
[1761215008672,11.84705433,3902.7,3902.6,0.002]
[1761215011154,11.94962171,3902.7,3902.6,0.002]
[1761215011754,2.66489602,3902.7,3902.6,0.002]
[1761215011982,2.66489602,3902.7,3902.6,0.464]
[1761215012157,2.66589602,3902.7,3902.6,0.002]
[1761215012364,2.56332864,3902.7,3902.6,0.002]
[1761215013890,0.001,3902.7,3902.6,0.002]
[1761215014068,0.001,3902.7,3902.6,0.464]
[1761215014388,0.001,3902.7,3902.6,0.002]
[1761215015359,2.56332864,3902.7,3902.6,0.002]
[1761215016089,0.001,3902.7,3902.6,0.002]
[1761215016588,2.56332864,3902.7,3902.6,0.002]
[1761215017187,0.001,3902.7,3902.6,0.464]
[1761215018384,0.001,3902.7,3902.6,0.002]
[1761215018587,0.001,3902.7,3902.6,0.464]
[1761215019706,2.56332864,3902.7,3902.6,0.002]
[1761215020008,0.001,3902.7,3902.6,0.464]
[1761215021074,2.56332864,3902.7,3902.6,0.002]
[1761215021796,0.129,3902.7,3902.6,0.002]
[1761215024474,0.129,3902.7,3902.6,0.464]
[1761215025701,2.69132864,3902.7,3902.6,0.002]
[1761215026602,0.129,3902.7,3902.6,0.002]
[1761215026978,2.69132864,3902.7,3902.6,0.002]
[1761215028596,2.69052864,3902.7,3902.6,0.002]
[1761215029384,4.45022864,3902.7,3902.6,0.002]
[1761215030016,4.55278314,3902.7,3902.6,0.002]
[1761215030231,4.34828314,3902.7,3902.6,0.002]
[1761215031000,2.79308314,3902.7,3902.6,0.002]
[1761215031205,2.69052864,3902.7,3902.6,0.002]
[1761215034191,0.1282,3902.7,3902.6,0.002]
[1761215034917,2.69052864,3902.7,3902.6,0.002]
[1761215035114,0.1282,3902.7,3902.6,0.464]
[1761215042849,2.69052864,3902.7,3902.6,0.464]
[1761215043154,2.69052864,3902.7,3902.6,0.002]
[1761215043748,0.1282,3902.7,3902.6,0.002]
[1761215043951,0.1282,3902.7,3902.6,0.4697]
[1761215045081,2.69052864,3902.7,3902.6,0.4697]
[1761215045222,2.69052864,3902.7,3902.6,0.002]
[1761215050879,2.69052864,3902.7,3902.2,1e-08]
[1761215050880,2.56259129,3902.3,3902.2,1e-08]
[1761215051028,2.56298536,3901.7,3901.4,0.002]
[1761215051344,14.91427443,3901.7,3901.4,0.002]
[1761215051541,15.01327443,3901.7,3901.4,0.002]
[1761215051754,15.11587602,3901.7,3901.4,0.002]
[1761215051956,13.18946369,3901.7,3901.4,0.002]
[1761215052253,4.22078695,3901.7,3901.4,0.002]
[1761215052453,7.47778695,3901.7,3901.4,0.002]
[1761215053123,0.10260159,3901.7,3901.4,0.002]
[1761215053327,2.56298081,3901.8,3901.6,0.4697]
[1761215053852,2.56298536,3901.7,3901.6,0.4697]
[1761215054060,2.56279298,3902.0,3901.6,0.4697]
[1761215054061,2.56292733,3901.8,3901.6,0.4697]
[1761215054264,2.56298536,3901.7,3901.6,0.4697]
[1761215054436,2.56286058,3901.9,3901.6,0.4697]
[1761215054761,1.5552,3902.2,3901.6,0.84257]
[1761215054966,2.56278195,3902.1,3901.6,0.84257]
[1761215055161,2.56278195,3902.1,3901.7,0.4677]
[1761215055662,2.56279859,3902.0,3901.7,0.4677]
[1761215056069,2.56298536,3901.7,3901.6,0.002]
[1761215056245,4.62506536,3901.7,3901.6,0.002]
[1761215056450,4.72406536,3901.7,3901.6,0.002]
[1761215056867,4.82666195,3901.7,3901.6,0.002]
[1761215060870,4.95466195,3901.7,3901.6,0.002]
[1761215068400,7.61578195,3901.7,3901.6,0.002]
[1761215069696,7.61578195,3901.7,3900.8,1e-08]
[1761215069697,4.79009098,3900.9,3900.8,1e-08]
[1761215069896,13.58325488,3900.9,3900.8,1e-08]
[1761215070116,13.68295488,3900.9,3900.8,1e-08]
[1761215070327,3.07065387,3900.5,3900.0,0.002]
[1761215070504,13.00765061,3900.5,3900.0,0.002]
[1761215070719,13.10735061,3900.5,3900.0,0.002]
[1761215071401,13.20998537,3900.5,3900.0,0.002]
[1761215072995,2.56429981,3899.7,3899.2,0.002]
[1761215073207,12.50029655,3899.7,3899.2,0.002]
[1761215073429,7.40149981,3899.7,3899.3,0.6944]
[1761215073598,7.87209981,3899.7,3899.3,0.6944]
[1761215074140,8.47797981,3899.7,3899.2,0.002]
[1761215074339,13.58277655,3899.7,3899.2,0.002]
[1761215077707,13.58197655,3899.7,3899.2,0.002]
[1761215079438,13.58297655,3899.7,3899.2,0.002]
[1761215079735,13.71097655,3899.7,3899.2,0.002]
[1761215079937,13.48397655,3899.7,3899.2,0.002]
[1761215080140,13.61197655,3899.7,3899.2,0.002]
[1761215080508,13.71097655,3899.7,3899.2,0.002]
[1761215080707,14.13134371,3899.7,3899.2,0.002]
[1761215083140,2.56456287,3899.3,3899.2,1e-08]
[1761215083326,4.62690597,3898.9,3898.8,0.002]
[1761215083529,13.17380271,3898.9,3898.8,0.002]
[1761215083729,13.37830271,3898.9,3898.8,0.002]
[1761215083944,13.67830271,3898.9,3898.8,0.002]
[1761215084857,10.39130271,3898.9,3898.8,0.002]
[1761215085064,13.67730271,3898.9,3898.8,0.002]
[1761215086528,13.57180271,3898.9,3898.8,0.002]
[1761215088668,13.27180271,3898.9,3898.8,0.002]
[1761215090138,9.73222909,3898.1,3898.0,0.3]
[1761215090335,13.01522909,3898.1,3898.0,0.3]
[1761215090539,13.11422909,3898.1,3898.0,0.3]
[1761215090772,12.27651963,3898.1,3898.0,0.3]
[1761215091679,12.17751963,3898.1,3898.0,0.3]
[1761215091976,12.27651963,3898.1,3898.0,0.3]
[1761215092160,12.17751963,3898.1,3898.0,0.3]
[1761215092538,12.27651963,3898.1,3898.0,0.3]
[1761215092740,12.27651963,3898.1,3898.0,1e-08]
[1761215093270,3.07256144,3897.6,3897.3,0.2258]
[1761215093439,3.07256144,3897.6,3897.0,0.6944]
[1761215093440,12.17684872,3897.6,3897.0,0.6944]
[1761215093641,12.30484872,3897.6,3897.0,0.6944]
[1761215093842,12.30484872,3897.6,3897.1,0.2258]
[1761215094368,12.30484872,3897.6,3897.2,0.4686]
[1761215096688,8.03776144,3897.6,3897.5,0.4706]
[1761215096972,12.30484872,3897.6,3897.5,0.4706]
[1761215097142,12.30484872,3897.6,3897.5,0.002]
[1761215099264,16.571936,3897.6,3897.5,0.002]
[1761215099468,16.670936,3897.6,3897.5,0.002]
[1761215100172,16.80486519,3897.6,3897.5,0.002]
[1761215102193,16.80406519,3897.6,3897.5,0.002]
[1761215104985,4.38201063,3897.6,3897.5,0.002]
[1761215105191,7.66101063,3897.6,3897.5,0.4551]
[1761215105590,8.16789063,3897.6,3897.5,0.002]
[1761215105775,4.38201063,3897.6,3897.5,0.002]
[1761215105980,2.69288144,3897.6,3897.5,0.4551]
[1761215106180,4.24808144,3897.6,3897.5,0.4551]
[1761215107216,0.001,3898.1,3897.5,0.4551]
[1761215107417,2.56635564,3898.1,3897.5,0.4551]
[1761215107628,2.56635564,3898.1,3897.6,0.30209562]
[1761215108119,2.56635564,3898.1,3897.7,0.4531]
[1761215108281,0.001,3898.1,3897.7,0.4531]
[1761215108486,2.56548836,3897.9,3897.7,0.4531]
[1761215110819,2.56543515,3898.0,3897.7,0.4531]
[1761215111920,0.001,3898.1,3897.7,0.4531]
[1761215112691,0.001,3898.1,3897.7,0.75518]
[1761215112888,0.001,3898.1,3897.5,0.002]
[1761215113094,2.56568144,3897.6,3897.5,0.4551]
[1761215116123,1.5562,3897.9,3897.5,0.4551]
[1761215116124,0.001,3897.9,3897.5,0.4551]
[1761215116324,1.5552,3897.7,3897.5,0.4551]
[1761215116497,1.5552,3897.8,3897.5,0.4551]
[1761215116692,4.12079227,3897.8,3897.5,0.4551]
[1761215117222,0.128,3897.6,3897.5,0.4551]
[1761215119433,2.56568144,3897.6,3897.5,0.002]
[1761215125462,2.56568144,3897.6,3897.5,0.4551]
[1761215126835,2.56488144,3897.6,3897.5,0.4551]
[1761215127639,2.56488144,3897.6,3897.5,0.002]
[1761215129351,2.69288144,3897.6,3897.5,0.002]
[1761215131345,2.69388144,3897.6,3897.5,0.002]
[1761215134659,2.69388144,3897.6,3897.5,0.4418]
[1761215135060,2.69388144,3897.6,3897.5,0.002]
[1761215138366,8.5148016,3897.6,3897.5,0.002]
[1761215138745,4.24908144,3897.6,3897.5,0.002]
[1761215140534,8.5148016,3897.6,3897.5,0.002]
[1761215142267,8.6138016,3897.6,3897.5,0.002]
[1761215142454,9.1206816,3897.6,3897.5,0.002]
[1761215142977,9.1206816,3897.6,3896.0,2.79251409]
[1761215142978,16.08340176,3897.6,3895.0,0.2258]
[1761215143267,8.51512833,3896.8,3896.4,0.4398]
[1761215143874,8.64654422,3896.8,3896.4,0.4398]
[1761215146657,4.24940817,3896.8,3896.7,0.4418]
[1761215149356,1.6832,3896.8,3896.7,0.4418]
[1761215149962,4.24940817,3896.8,3896.7,0.4418]
[1761215150163,4.24940817,3896.8,3896.7,0.002]
[1761215150389,4.24940817,3896.8,3896.7,0.4418]
[1761215151260,4.24860817,3896.8,3896.7,0.4418]
[1761215151955,4.12060817,3896.8,3896.7,0.4418]
[1761215152158,4.24860817,3896.8,3896.7,0.002]
[1761215153092,4.24860817,3896.8,3896.7,0.4418]
[1761215158985,0.128,3896.8,3896.7,0.4418]
[1761215161423,0.128,3896.8,3896.7,0.74282654]
[1761215161924,0.128,3896.8,3896.7,4.01282654]
[1761215164617,0.128,3896.8,3896.7,0.30302654]
[1761215164820,2.69420817,3896.8,3896.7,0.002]
[1761215165729,2.69520817,3896.8,3896.7,0.002]
[1761215167807,0.129,3896.8,3896.7,0.4375]
[1761215168151,2.69520817,3896.8,3896.7,0.4375]
[1761215168314,0.129,3896.8,3896.7,0.4375]
[1761215169134,2.69520817,3896.8,3896.7,0.4375]
[1761215169545,0.129,3896.8,3896.7,0.4375]
[1761215170846,0.129,3896.8,3896.7,3.37462402]
[1761215171214,0.001,3897.2,3897.1,2.56601062]
[1761215171410,0.001,3897.6,3897.1,0.75747039]
[1761215171618,0.001,3897.6,3897.2,3.7075]
[1761215171934,0.001,3897.6,3897.5,2.56574727]
[1761215172325,0.001,3897.6,3897.5,0.4355]
[1761215172539,0.001,3897.6,3897.5,3.273]
[1761215172932,2.56668144,3897.6,3897.5,3.273]
[1761215173315,2.56668144,3897.6,3897.5,3.7085]
[1761215173316,0.001,3897.6,3897.5,3.7085]
[1761215173515,0.001,3897.6,3897.5,4.07935]
[1761215174555,0.001,3897.6,3897.5,6.64509727]
[1761215175577,0.0002,3897.6,3897.5,6.64509727]
[1761215177683,0.0002,3897.6,3897.1,0.2186]
[1761215177882,0.0002,3897.6,3897.1,0.6541]
[1761215178186,2.56582193,3897.4,3897.1,0.6541]
[1761215178489,2.56588914,3897.3,3897.1,0.6541]
[1761215179247,1.5552,3897.3,3897.2,3.278]
[1761215179878,4.12107894,3897.3,3897.2,3.278]
[1761215181176,4.24907894,3897.3,3897.2,3.278]
[1761215182372,2.56607646,3897.0,3896.9,3.277]
[1761215182580,2.69407646,3897.0,3896.9,3.277]
[1761215182976,2.69407646,3897.0,3896.6,0.002]
[1761215182977,2.56620817,3896.8,3896.6,0.002]
[1761215183190,2.69420817,3896.8,3896.7,0.864]
[1761215184657,2.69420817,3896.8,3896.7,0.002]
[1761215186994,0.128,3896.8,3896.7,0.4476]
[1761215187287,2.69420817,3896.8,3896.7,0.4476]
[1761215187663,2.69420817,3896.8,3896.7,0.002]
[1761215188195,2.69420817,3896.8,3896.7,0.4476]
[1761215188375,0.128,3896.8,3896.7,0.4476]
[1761215188692,0.128,3896.8,3896.7,0.82026]
[1761215189995,0.128,3896.8,3896.7,3.38653402]
[1761215190491,0.128,3896.8,3896.7,0.82026]
[1761215191485,0.128,3896.8,3896.7,3.7374]
[1761215191865,0.128,3896.8,3896.7,0.4624]
[1761215192167,0.128,3896.8,3896.7,3.7374]
[1761215194467,0.128,3896.8,3896.7,3.7364]
[1761215194988,0.128,3896.8,3896.7,3.276]
[1761215195300,0.128,3896.8,3896.7,3.7364]
[1761215195794,0.128,3896.8,3896.7,3.275]
[1761215196000,0.128,3896.8,3896.7,3.7354]
[1761215196800,0.128,3896.8,3896.7,3.275]
[1761215196801,2.69420817,3896.8,3896.7,3.275]
[1761215196964,2.69420817,3896.8,3896.7,0.002]
[1761215197168,2.69420817,3896.8,3896.7,3.275]
[1761215199172,0.128,3896.8,3896.7,3.275]
[1761215200073,2.69340817,3896.8,3896.7,3.275]
[1761215200886,2.69340817,3896.8,3896.7,3.274]
[1761215201183,4.35100817,3896.8,3896.7,0.002]
[1761215203315,4.24860817,3896.8,3896.7,0.002]
[1761215203475,4.24940817,3896.8,3896.7,0.002]
[1761215209088,2.69420817,3896.8,3896.7,0.002]
[1761215209708,0.128,3896.8,3896.7,0.002]
[1761215210008,0.128,3896.8,3896.7,0.4624]
[1761215210510,2.69420817,3896.8,3896.7,0.4624]
[1761215211706,0.128,3896.8,3896.7,0.4624]
[1761215212419,2.69420817,3896.8,3896.7,0.4624]
[1761215212907,0.128,3896.8,3896.7,0.4624]
[1761215213621,2.69420817,3896.8,3896.7,0.4624]
[1761215214150,2.56620817,3896.8,3896.7,0.002]
[1761215217093,2.56615843,3896.9,3896.7,0.002]
[1761215217504,2.56620817,3896.8,3896.7,3.7334]
[1761215217728,2.56620817,3896.8,3896.7,3.273]
[1761215218328,2.66860817,3896.8,3896.7,3.273]
[1761215218511,2.56620817,3896.8,3896.7,3.273]
[1761215218715,2.56620817,3896.8,3896.7,0.002]
[1761215218916,2.56620817,3896.8,3896.7,3.273]
[1761215219111,2.56620817,3896.8,3896.7,3.272]
[1761215220827,2.56620817,3896.8,3896.7,0.002]
[1761215222126,2.66860817,3896.8,3896.7,0.002]
[1761215222630,2.56620817,3896.8,3896.7,0.002]
[1761215222933,0.001,3896.9,3896.7,0.4753]
[1761215223228,0.001,3896.9,3896.8,0.63136667]
[1761215223627,0.001,3896.9,3896.8,1.10466667]
[1761215224132,0.129,3896.9,3896.8,3.90136667]
[1761215224298,0.129,3896.9,3896.8,4.37466667]
[1761215224504,0.1282,3896.9,3896.8,3.90136667]
[1761215226312,0.1282,3896.9,3896.8,6.46757484]
[1761215227042,0.1282,3896.9,3896.8,6.94087484]
[1761215227617,0.1282,3896.9,3896.8,6.46757484]
[1761215227820,0.0002,3896.9,3896.8,6.94087484]
[1761215229209,0.0002,3896.9,3896.8,7.06887484]
[1761215231422,0.0002,3896.9,3896.8,0.75936667]
[1761215231659,0.0992,3896.9,3896.7,0.002]
[1761215231959,0.0992,3896.9,3896.8,3.266]
[1761215232447,0.0002,3896.9,3896.8,3.266]
[1761215233549,0.0992,3896.9,3896.8,3.266]
[1761215234145,2.66534231,3896.9,3896.8,3.266]
[1761215234439,0.0992,3896.9,3896.8,3.27]
[1761215235619,0.0002,3896.9,3896.8,3.27]
[1761215238173,0.0002,3896.9,3896.8,3.272]
[1761215238490,0.0002,3896.9,3896.8,6.42244794]
[1761215238752,0.0002,3896.9,3896.8,6.89574794]
[1761215241562,0.0002,3896.9,3896.8,7.02374794]
[1761215245648,0.0002,3896.9,3896.8,3.75374794]
[1761215245850,0.0002,3896.9,3896.8,7.02174794]
[1761215246159,0.0002,3896.9,3896.8,0.71423977]
[1761215246359,0.0002,3896.9,3896.8,3.27]
[1761215246574,0.1007,3896.9,3896.8,3.27]
[1761215246795,0.0002,3896.9,3896.8,3.27]
[1761215249183,2.566014,3897.1,3896.8,3.27]
[1761215249184,0.1005,3897.0,3896.8,3.27]
[1761215249705,0.1005,3897.0,3896.9,3.269]
[1761215250503,2.66659251,3897.0,3896.9,3.269]
[1761215252601,2.66659251,3897.0,3896.8,0.002]
[1761215252602,0.1005,3897.0,3896.8,0.002]
[1761215252804,0.1005,3897.0,3896.9,3.269]
[1761215253109,2.56603679,3897.1,3896.9,3.269]
[1761215254320,2.56607646,3897.0,3896.9,3.269]
[1761215255214,2.56614231,3896.9,3896.8,0.002]
[1761215255512,2.56614231,3896.9,3896.8,3.269]
[1761215256420,2.69414231,3896.9,3896.8,3.269]
[1761215257729,2.69414231,3896.9,3896.8,0.002]
[1761215257930,2.79464231,3896.9,3896.8,0.002]
[1761215258239,2.79464231,3896.9,3896.8,2.276]
[1761215260111,2.69414231,3896.9,3896.8,0.002]
[1761215260405,2.79464231,3896.9,3896.8,0.002]
[1761215261701,4.34984231,3896.9,3896.8,0.002]
[1761215264558,4.24934231,3896.9,3896.8,0.002]
[1761215264757,2.56701417,3897.1,3896.8,0.002]
[1761215265643,2.5660806,3897.0,3896.8,0.002]
[1761215266225,0.001,3897.1,3896.8,0.002]
[1761215266529,0.001,3897.1,3896.8,3.267]
[1761215266959,2.56609592,3897.0,3896.8,3.267]
[1761215267450,2.56703401,3897.1,3896.8,3.267]
[1761215267646,2.56607648,3897.0,3896.8,3.267]
[1761215267969,2.56608849,3897.0,3896.8,3.267]
[1761215269329,0.001,3897.1,3896.8,0.002]
[1761215269530,3.33730818,3897.1,3896.8,0.002]
[1761215270143,2.56608624,3897.0,3896.8,0.002]
[1761215271352,2.56614231,3896.9,3896.8,0.002]
[1761215272271,2.66664231,3896.9,3896.8,0.002]
[1761215273140,4.22184231,3896.9,3896.8,0.002]
[1761215273470,4.22104231,3896.9,3896.8,0.002]
[1761215274453,4.12054231,3896.9,3896.8,0.002]
[1761215274653,4.24854231,3896.9,3896.8,0.002]
[1761215274977,4.34904231,3896.9,3896.8,0.002]
[1761215279348,4.24854231,3896.9,3896.8,0.002]
[1761215279549,4.35125455,3896.9,3896.8,0.002]
[1761215280981,1.65791224,3896.9,3896.8,0.002]
[1761215281196,1.6832,3896.9,3896.8,0.002]
[1761215281370,4.24934231,3896.9,3896.8,0.002]
[1761215281680,1.6832,3896.9,3896.8,0.002]
[1761215283297,4.34984231,3896.9,3896.8,0.002]
[1761215283690,4.45255244,3896.9,3896.8,0.002]
[1761215285887,1.78591013,3896.9,3896.8,0.002]
[1761215286087,1.6832,3896.9,3896.8,0.4336]
[1761215286291,0.001,3897.1,3896.8,0.4336]
[1761215286510,0.001,3897.1,3896.8,2.99980083]
[1761215286794,0.001,3897.1,3896.9,0.71253294]
[1761215286980,0.001,3897.1,3897.0,3.264]
[1761215287391,0.001,3897.1,3897.0,3.6956]
[1761215289881,0.001,3897.1,3897.0,6.26167646]
[1761215296621,0.001,3897.1,3897.0,5.83007646]
[1761215296821,0.001,3897.1,3897.0,6.26167646]
[1761215297023,0.001,3897.1,3897.0,7.15785951]
[1761215298139,0.0002,3897.1,3897.0,7.15785951]
[1761215306955,0.0002,3897.1,3897.0,3.46225951]
[1761215307455,0.0002,3897.1,3897.0,6.72425951]
[1761215307456,0.1282,3897.1,3897.0,6.72425951]
[1761215308454,0.1282,3897.1,3897.0,4.15818305]
[1761215308655,0.1282,3897.1,3897.0,5.82807646]
[1761215309057,0.1282,3897.1,3897.0,3.262]
[1761215309725,0.1282,3897.1,3897.0,5.82807646]
[1761215309925,0.1282,3897.1,3897.0,3.262]
[1761215310154,0.1282,3897.1,3897.0,5.82807646]
[1761215310351,0.1282,3897.1,3897.0,2.56607646]
[1761215310872,0.1282,3897.1,3897.0,5.82807646]
[1761215311073,0.1282,3897.1,3897.0,5.83007646]
[1761215311555,0.0002,3897.1,3897.0,0.002]
[1761215312152,2.56621062,3897.1,3897.0,0.002]
[1761215312359,2.66601062,3897.1,3897.0,0.002]
[1761215316443,0.1,3897.1,3897.0,0.002]
[1761215317648,0.0002,3897.1,3897.0,0.002]
[1761215317897,0.0002,3897.1,3897.0,0.4303]
[1761215318494,0.0002,3897.1,3897.0,0.002]
[1761215319375,0.0002,3897.1,3897.0,3.264]
[1761215321771,0.1282,3897.1,3897.0,3.264]
[1761215322354,0.1274,3897.1,3897.0,3.264]
[1761215324677,0.1274,3897.1,3897.0,0.002]
[1761215324991,0.1274,3897.1,3897.0,3.264]
[1761215328700,0.0774,3897.1,3897.0,3.264]
[1761215329276,0.0784,3897.1,3897.0,3.264]
[1761215332313,0.0784,3897.1,3897.0,3.6923]
[1761215339990,0.0784,3897.1,3897.0,7.14144257]
[1761215340394,0.0784,3897.1,3897.0,4.57536611]
[1761215342730,0.0784,3897.1,3897.0,3.6923]
[1761215343308,0.0784,3897.1,3897.0,3.264]
[1761215343714,0.0784,3897.1,3897.0,3.263]
[1761215344632,0.1782,3897.1,3897.0,3.263]
[1761215344838,0.0784,3897.1,3897.0,3.263]
[1761215345333,0.001,3897.1,3897.0,4.28552644]
[1761215346225,0.001,3897.1,3897.0,3.84652644]
[1761215346803,0.1008,3897.1,3897.0,0.002]
[1761215347029,0.0002,3897.1,3897.0,3.263]
[1761215351426,2.56621062,3897.1,3897.0,0.002]
[1761215351610,0.0002,3897.1,3897.0,0.826]
[1761215352338,0.1,3897.1,3897.0,0.826]
[1761215352533,0.0002,3897.1,3897.0,0.826]
[1761215353246,8.48692018,3897.1,3897.0,0.002]
[1761215353750,9.25721454,3897.1,3897.0,0.002]
[1761215355036,9.15741454,3897.1,3897.0,0.002]
[1761215355350,5.01970498,3897.1,3897.0,0.002]
[1761215355537,5.11950498,3897.1,3897.0,0.002]
[1761215359259,5.01970498,3897.1,3897.0,0.002]
[1761215359557,9.28541454,3897.1,3897.0,0.002]
[1761215360524,9.38521454,3897.1,3897.0,0.002]
[1761215361450,5.01970498,3897.1,3897.0,0.002]
[1761215361843,5.11950498,3897.1,3897.0,0.002]
[1761215366679,3.56430498,3897.1,3897.0,0.002]
[1761215368254,5.11950498,3897.1,3897.0,0.002]
[1761215371298,9.38521454,3897.1,3897.0,0.002]
[1761215371451,9.28461454,3897.1,3897.0,0.002]
[1761215373360,9.38441454,3897.1,3897.0,0.002]
[1761215373994,9.28461454,3897.1,3897.0,0.002]
[1761215374494,9.38441454,3897.1,3897.0,0.002]
[1761215379299,9.28461454,3897.1,3897.0,0.002]
[1761215380067,9.28561454,3897.1,3897.0,0.002]
[1761215383029,9.89229454,3897.1,3897.0,0.002]
[1761215383524,10.02623653,3897.1,3897.0,0.002]
[1761215390324,10.02623653,3897.1,3896.6,0.002]
[1761215390325,2.56653748,3896.3,3896.2,0.002]
[1761215390521,12.51676788,3896.3,3896.2,0.002]
[1761215390831,12.99740442,3896.3,3896.2,0.002]
[1761215391007,13.22320442,3896.3,3896.2,0.002]
[1761215394039,12.85876358,3896.3,3896.2,0.002]
[1761215394739,13.71863488,3896.3,3896.2,0.002]
[1761215395737,4.34753748,3896.3,3896.2,0.002]
[1761215395904,12.73031834,3896.3,3896.2,0.002]
[1761215397019,12.73131834,3896.3,3896.2,0.002]
[1761215397630,7.60573748,3896.3,3896.2,0.002]
[1761215397850,9.47331834,3896.3,3896.2,0.002]
[1761215398153,12.73131834,3896.3,3896.2,0.002]